[Event "Anderssen Memorial Open-A 2020"]
[Site "Wroclaw"]
[Date "2020.08.07"]
[Round "8.7"]
[White "Krzywda, Andrzej"]
[Black "Borowski, Przemyslaw"]
[Result "1-0"]
[ECO "A04"]
[WhiteElo "2156"]
[BlackElo "1790"]
[Annotator "ChessBase"]
[PlyCount "49"]
[EventDate "2020.08.01"]
[EventType "swiss"]
[EventCountry "POL"]
[SourceTitle "playchess.com"]
[Source "ChessBase"]
[SourceQuality "1"]
[TimeControl "40/5400+15:1800+30"]

1. Nf3 {[%emt 0:00:00]} c5 {[%emt 0:00:27]} 2. g3 {[%emt 0:00:00]} Nf6 {[%emt 0:00:07]} 3. Bg2 {[%emt 0:00:00]} g6 {[%emt 0:00:27]} 4. O-O {[%emt 0:00:00]} Bg7 {[%emt 0:00:00]} 5. d4 {[%emt 0:01:15]} cxd4 {[%emt 0:01:26]} 6. Nxd4 {[%emt 0:00:00]} Nc6 {[%emt 0:01:59]} 7. c4 {[%emt 0:00:07]} O-O {[%emt 0:03:14]} 8. Nc3 {[%emt 0:00:00]} Nxd4 {[%emt 0:04:35]} 9. Qxd4 {[%emt 0:00:00]} d6 {[%emt 0:00:00]} 10. Qh4 {[%emt 0:06:00]} Re8 {[%emt 0:06:57]} 11. Rd1 {[%emt 0:06:05]} Qb6 {[%emt 0:07:25]} 12. Be3 {[%emt 0:10:29]} Qxb2 {[%emt 0:19:27]} 13. Nb5 {[%emt 0:07:12]} Rb8 {[%emt 0:10:34]} 14. Nc7 {[%emt 0:12:09]} Bf5 {[%emt 0:19:51]} 15. Nxe8 {[%emt 0:09:06]} Rxe8 {[%emt 0:00:18]} 16. Bf3 {[%emt 0:04:19]} e5 {[%emt 0:01:50]} 17. Rac1 {[%emt 0:10:31]} Qxa2 18. Rxd6 {[%emt 0:02:04]} e4 {[%emt 0:06:29]} 19. Bg2 {[%emt 0:00:38]} Ng4 {[%emt 0:00:17]} 20. Rd8 {[%emt 0:02:32]} Qa4 {[%emt 0:01:40]} 21. Qe7 {[%emt 0:03:07]} Nf6 {[%emt 0:02:29]} 22. Rxe8+ {[%emt 0:02:51]} Nxe8 {[%emt 0:01:04]} 23. Qxb7 {[%emt 0:00:28]} a5 {[%emt 0:00:39]} 24. Bxe4 {[%emt 0:02:57]} Bxe4 {[%emt 0:01:15]} 25. Qxe4 {[%emt 0:00:00]} 1-0

[Event "Anderssen Memorial Open-A 2020"]
[Site "Wroclaw"]
[Date "2020.08.07"]
[Round "8.8"]
[White "Kowalczyk, Wojciech"]
[Black "Nguyen, Alex Dac-Vuong"]
[Result "0-1"]
[ECO "B24"]
[WhiteElo "1873"]
[BlackElo "2366"]
[Annotator "ChessBase"]
[PlyCount "122"]
[EventDate "2020.08.01"]
[EventType "swiss"]
[EventCountry "POL"]
[SourceTitle "playchess.com"]
[Source "ChessBase"]
[SourceQuality "1"]
[TimeControl "40/5400+15:1800+30"]

1. e4 {[%emt 0:00:00]} c5 {[%emt 0:00:00]} 2. Nc3 {[%emt 0:00:00]} Nc6 {[%emt 0:00:00]} 3. Bb5 {[%emt 0:00:00]} Nd4 {[%emt 0:00:00]} 4. Bc4 {[%emt 0:00:43]} a6 {[%emt 0:00:00]} 5. a4 {[%emt 0:03:39]} e6 {[%emt 0:00:00]} 6. Nf3 {[%emt 0:01:24]} Nf6 {[%emt 0:04:06]} 7. O-O {[%emt 0:06:55]} d5 {[%emt 0:02:29]} 8. exd5 {[%emt 0:03:42]} exd5 {[%emt 0:00:00]} 9. Ba2 {[%emt 0:00:39]} Bg4 {[%emt 0:12:22]} 10. Qe1+ {[%emt 0:04:39]} Be7 {[%emt 0:00:04]} 11. Nxd4 {[%emt 0:00:25]} cxd4 {[%emt 0:00:00]} 12. Ne2 {[%emt 0:00:43]} d3 {[%emt 0:00:15]} 13. cxd3 {[%emt 0:00:53]} O-O {[%emt 0:00:09]} 14. h3 {[%emt 0:07:03]} Bf5 {[%emt 0:02:19]} 15. d4 {[%emt 0:04:54]} Qd7 {[%emt 0:03:29]} 16. Qd1 {[%emt 0:18:15]} Bd6 {[%emt 0:25:11]} 17. Ng3 {[%emt 0:04:13]} Bd3 {[%emt 0:06:35]} 18. Re1 {[%emt 0:01:11]} Bxg3 {[%emt 0:01:30]} 19. fxg3 {[%emt 0:00:05]} Rfe8 {[%emt 0:02:01]} 20. Re3 {[%emt 0:02:17]} Bg6 {[%emt 0:10:20]} 21. Bb1 {[%emt 0:10:32]} Bxb1 {[%emt 0:11:18]} 22. Rxb1 {[%emt 0:00:00]} Rxe3 {[%emt 0:05:22]} 23. dxe3 {[%emt 0:00:08]} Ne4 {[%emt 0:02:11]} 24. Bd2 {[%emt 0:12:37]} Nxg3 {[%emt 0:00:12]} 25. Rc1 {[%emt 0:00:00]} Rc8 {[%emt 0:00:07]} 26. Rxc8+ {[%emt 0:01:38]} Qxc8 {[%emt 0:00:00]} 27. Qe1 {[%emt 0:03:04]} Ne4 {[%emt 0:00:00]} 28. Bc3 {[%emt 0:00:05]} f6 {[%emt 0:00:49]} 29. a5 {[%emt 0:01:20]} Qc4 {[%emt 0:00:21]} 30. Qf1 {[%emt 0:01:10]} Qxf1+ {[%emt 0:00:39]} 31. Kxf1 {[%emt 0:00:00]} Kf7 {[%emt 0:00:14]} 32. Ke2 {[%emt 0:00:27]} Ke6 {[%emt 0:00:00]} 33. Be1 {[%emt 0:01:05]} Kd7 {[%emt 0:00:00]} 34. Kf3 {[%emt 0:01:36]} Ke6 {[%emt 0:03:30]} 35. Bb4 {[%emt 0:00:52]} Kf5 {[%emt 0:00:07]} 36. Be1 {[%emt 0:00:36]} Ng5+ {[%emt 0:00:03]} 37. Ke2 {[%emt 0:00:35]} Ke6 {[%emt 0:00:00]} 38. Bb4 {[%emt 0:00:28]} g6 {[%emt 0:00:00]} 39. Bf8 {[%emt 0:01:01]} h5 {[%emt 0:00:20]} 40. Bh6 {[%emt 0:00:00]} Ne4 {[%emt 0:00:00]} 41. Bf8 {[%emt 0:16:38]} Kd7 {[%emt 0:18:21]} 42. Kf3 {[%emt 0:07:37]} Kc6 {[%emt 0:01:59]} 43. Kf4 {[%emt 0:00:54]} Kb5 {[%emt 0:02:20]} 44. b4 {[%emt 0:00:10]} Kc4 {[%emt 0:03:05]} 45. Be7 {[%emt 0:00:21]} Kd3 {[%emt 0:00:28]} 46. g4 {[%emt 0:00:18]} hxg4 {[%emt 0:00:48]} 47. hxg4 {[%emt 0:01:04]} Ke2 {[%emt 0:02:07]} 48. Bd8 {[%emt 0:03:50]} Kd2 {[%emt 0:04:33]} 49. Be7 {[%emt 0:00:16]} Kd3 {[%emt 0:00:06]} 50. Bd8 {[%emt 0:00:51]} Ke2 {[%emt 0:00:04]} 51. Be7 {[%emt 0:00:16]} g5+ {[%emt 0:00:38]} 52. Kf5 {[%emt 0:00:17]} Kxe3 {[%emt 0:00:05]} 53. Bxf6 {[%emt 0:01:56]} Nxf6 {[%emt 0:00:06]} 54. Kxf6 {[%emt 0:00:16]} Kf4 {[%emt 0:00:22]} 55. Ke6 {[%emt 0:00:34]} Kxg4 {[%emt 0:00:20]} 56. Kxd5 {[%emt 0:01:23]} Kf5 {[%emt 0:00:08]} 57. Kc5 {[%emt 0:01:43]} g4 {[%emt 0:00:06]} 58. d5 {[%emt 0:01:01]} g3 {[%emt 0:00:11]} 59. b5 {[%emt 0:00:33]} g2 {[%emt 0:00:45]} 60. bxa6 {[%emt 0:00:30]} g1=Q+ {[%emt 0:00:22]} 61. Kb5 {[%emt 0:00:16]} Qf1+ {[%emt 0:00:23]} 0-1

[Event "Anderssen Memorial Open-A 2020"]
[Site "Wroclaw"]
[Date "2020.08.07"]
[Round "8.9"]
[White "Skurniak, Szymon"]
[Black "Wong, Gengchun"]
[Result "1/2-1/2"]
[ECO "B91"]
[WhiteElo "2036"]
[BlackElo "2190"]
[Annotator "ChessBase"]
[PlyCount "58"]
[EventDate "2020.08.01"]
[EventType "swiss"]
[EventCountry "POL"]
[SourceTitle "playchess.com"]
[Source "ChessBase"]
[SourceQuality "1"]
[TimeControl "40/5400+15:1800+30"]

1. e4 c5 {[%emt 0:03:46]} 2. Nf3 {[%emt 0:00:00]} d6 {[%emt 0:00:40]} 3. d4 {[%emt 0:00:00]} cxd4 {[%emt 0:00:00]} 4. Nxd4 {[%emt 0:00:00]} Nf6 {[%emt 0:00:00]} 5. Nc3 {[%emt 0:00:00]} a6 {[%emt 0:00:00]} 6. g3 {[%emt 0:00:00]} e5 {[%emt 0:00:54]} 7. Nde2 {[%emt 0:00:00]} Be7 {[%emt 0:00:00]} 8. Bg2 {[%emt 0:00:00]} O-O {[%emt 0:00:10]} 9. O-O {[%emt 0:00:00]} b5 {[%emt 0:00:53]} 10. Nd5 {[%emt 0:00:00]} Nxd5 {[%emt 0:02:22]} 11. Qxd5 {[%emt 0:00:00]} Ra7 {[%emt 0:00:00]} 12. Be3 {[%emt 0:00:00]} Rb7 {[%emt 0:06:44]} 13. Rfd1 {[%emt 0:12:24]} Qc7 {[%emt 0:06:31]} 14. Qd2 {[%emt 0:05:04]} Be6 {[%emt 0:11:25]} 15. Nc3 {[%emt 0:01:28]} Rc8 {[%emt 0:09:12]} 16. Nd5 {[%emt 0:00:08]} Qxc2 {[%emt 0:19:20]} 17. Nxe7+ {[%emt 0:07:28]} Rxe7 {[%emt 0:00:00]} 18. Rac1 {[%emt 0:00:01]} Qxd2 {[%emt 0:02:07]} 19. Rxc8+ {[%emt 0:00:00]} Bxc8 {[%emt 0:00:00]} 20. Rxd2 {[%emt 0:00:00]} Be6 {[%emt 0:03:25]} 21. Rxd6 {[%emt 0:00:00]} Rd7 {[%emt 0:00:00]} 22. Rb6 {[%emt 0:01:52]} Rd1+ {[%emt 0:03:12]} 23. Bf1 {[%emt 0:00:37]} Nd7 {[%emt 0:00:00]} 24. Rc6 {[%emt 0:00:31]} Bc4 {[%emt 0:17:55]} 25. Rc8+ {[%emt 0:00:32]} Nf8 {[%emt 0:00:00]} 26. Bc5 {[%emt 0:05:23]} h5 {[%emt 0:00:00]} 27. Rxf8+ {[%emt 0:03:40]} Kh7 {[%emt 0:00:00]} 28. Kg2 {[%emt 0:06:55]} Bxf1+ {[%emt 0:00:00]} 29. Kf3 {[%emt 0:00:00]} Bc4 {[%emt 0:03:30]} 1/2-1/2

[Event "Anderssen Memorial Open-A 2020"]
[Site "Wroclaw"]
[Date "2020.08.07"]
[Round "8.10"]
[White "Golecki, Jan"]
[Black "Trybus, Daniel"]
[Result "1-0"]
[ECO "B85"]
[WhiteElo "2106"]
[BlackElo "1950"]
[Annotator "ChessBase"]
[PlyCount "85"]
[EventDate "2020.08.01"]
[EventType "swiss"]
[EventCountry "POL"]
[SourceTitle "playchess.com"]
[Source "ChessBase"]
[SourceQuality "1"]
[TimeControl "40/5400+15:1800+30"]

1. e4 {[%emt 0:00:00]} c5 {[%emt 0:00:00]} 2. Nf3 {[%emt 0:00:00]} d6 {[%emt 0:00:00]} 3. d4 {[%emt 0:00:00]} cxd4 {[%emt 0:00:00]} 4. Nxd4 {[%emt 0:00:00]} Nf6 {[%emt 0:00:00]} 5. Nc3 {[%emt 0:00:00]} a6 {[%emt 0:00:00]} 6. Be2 {[%emt 0:00:00]} e6 {[%emt 0:00:00]} 7. Be3 {[%emt 0:00:00]} Be7 {[%emt 0:00:00]} 8. O-O {[%emt 0:00:00]} O-O {[%emt 0:00:00]} 9. f4 {[%emt 0:00:00]} Qc7 {[%emt 0:00:00]} 10. Qe1 {[%emt 0:00:00]} Nc6 {[%emt 0:00:00]} 11. Qg3 {[%emt 0:00:00]} Nxd4 {[%emt 0:00:00]} 12. Bxd4 {[%emt 0:00:00]} b5 {[%emt 0:00:00]} 13. a3 {[%emt 0:00:00]} Bb7 {[%emt 0:00:00]} 14. Rae1 {[%emt 0:00:00]} Rad8 {[%emt 0:00:00]} 15. Kh1 {[%emt 0:00:00]} Rd7 {[%emt 0:00:00]} 16. Bd3 {[%emt 0:00:26]} Re8 {[%emt 0:00:00]} 17. e5 {[%emt 0:04:03]} dxe5 {[%emt 0:00:00]} 18. Bxe5 {[%emt 0:00:01]} Qd8 {[%emt 0:00:00]} 19. f5 {[%emt 0:23:52]} Bd6 {[%emt 0:00:00]} 20. Qh3 {[%emt 0:03:57]} Bxe5 {[%emt 0:05:06]} 21. Rxe5 {[%emt 0:00:33]} Rde7 {[%emt 0:04:22]} 22. Ne4 {[%emt 0:27:24]} Bxe4 {[%emt 0:15:13]} 23. Bxe4 {[%emt 0:10:18]} Qd4 {[%emt 0:01:24]} 24. Qg3 {[%emt 0:02:34]} Nh5 {[%emt 0:01:45]} 25. Qc3 {[%emt 0:00:28]} Qxc3 {[%emt 0:05:06]} 26. bxc3 {[%emt 0:00:00]} exf5 {[%emt 0:01:18]} 27. Rxe7 {[%emt 0:00:12]} Rxe7 {[%emt 0:00:02]} 28. Bxf5 {[%emt 0:01:55]} g6 {[%emt 0:02:05]} 29. Bc8 {[%emt 0:00:47]} Ra7 {[%emt 0:01:57]} 30. g4 {[%emt 0:00:36]} Ng7 {[%emt 0:01:23]} 31. c4 {[%emt 0:04:46]} Kf8 {[%emt 0:03:15]} 32. Rf6 {[%emt 0:07:29]} Ke7 {[%emt 0:04:50]} 33. Rc6 {[%emt 0:01:29]} Ne6 {[%emt 0:03:07]} 34. Rxa6 Rxa6 {[%emt 0:01:57]} 35. Bxa6 {[%emt 0:00:46]} bxc4 {[%emt 0:01:19]} 36. Bxc4 {[%emt 0:00:00]} Nd4 {[%emt 0:00:22]} 37. Bd3 {[%emt 0:02:11]} Kd6 {[%emt 0:01:45]} 38. Kg2 {[%emt 0:01:34]} Ke5 {[%emt 0:01:23]} 39. c3 {[%emt 0:01:52]} Ne6 {[%emt 0:00:24]} 40. Kf3 {[%emt 0:00:00]} f5 {[%emt 0:00:00]} 41. gxf5 {[%emt 0:16:21]} gxf5 {[%emt 0:15:26]} 42. a4 {[%emt 0:02:01]} Nc5 {[%emt 0:00:23]} 43. a5 {[%emt 0:00:52]} 1-0

[Event "Anderssen Memorial Open-A 2020"]
[Site "Wroclaw"]
[Date "2020.08.07"]
[Round "8.11"]
[White "Jankowiak, Piotr"]
[Black "Gardian, Adam"]
[Result "1-0"]
[ECO "A04"]
[WhiteElo "2009"]
[BlackElo "1723"]
[Annotator "ChessBase"]
[PlyCount "83"]
[EventDate "2020.08.01"]
[EventType "swiss"]
[EventCountry "POL"]
[SourceTitle "playchess.com"]
[Source "ChessBase"]
[SourceQuality "1"]
[TimeControl "40/5400+15:1800+30"]

1. Nf3 {[%emt 0:00:00]} e6 {[%emt 0:00:24]} 2. b3 {[%emt 0:00:00]} f5 {[%emt 0:00:11]} 3. g3 {[%emt 0:01:33]} Nf6 {[%emt 0:00:13]} 4. Bg2 {[%emt 0:00:00]} Be7 {[%emt 0:00:16]} 5. c4 {[%emt 0:02:03]} O-O {[%emt 0:00:21]} 6. O-O {[%emt 0:00:00]} Qe8 {[%emt 0:05:18]} 7. Bb2 {[%emt 0:01:27]} Qh5 {[%emt 0:00:28]} 8. d3 {[%emt 0:09:17]} d6 {[%emt 0:04:38]} 9. Nc3 {[%emt 0:07:42]} e5 {[%emt 0:01:16]} 10. e4 {[%emt 0:28:14]} f4 {[%emt 0:14:09]} 11. d4 {[%emt 0:00:40]} c6 {[%emt 0:07:00]} 12. Ba3 {[%emt 0:03:39]} Rd8 {[%emt 0:02:47]} 13. Qe2 {[%emt 0:03:07]} fxg3 {[%emt 0:05:48]} 14. fxg3 {[%emt 0:03:07]} Bg4 {[%emt 0:00:34]} 15. dxe5 {[%emt 0:01:28]} Bxf3 {[%emt 0:01:07]} 16. Rxf3 {[%emt 0:03:50]} Qxe5 {[%emt 0:00:46]} 17. Rd1 {[%emt 0:01:59]} Nbd7 {[%emt 0:01:32]} 18. Bb2 {[%emt 0:04:18]} Qc5+ {[%emt 0:00:31]} 19. Kh1 {[%emt 0:04:43]} Ne5 {[%emt 0:00:00]} 20. Rf5 {[%emt 0:00:58]} Nfg4 {[%emt 0:00:54]} 21. Re1 {[%emt 0:02:07]} Rf8 {[%emt 0:09:33]} 22. h3 {[%emt 0:00:24]} Nf2+ {[%emt 0:05:15]} 23. Kh2 {[%emt 0:00:00]} Nfd3 {[%emt 0:05:56]} 24. Na4 {[%emt 0:00:00]} Qa5 {[%emt 0:02:13]} 25. Bc3 {[%emt 0:00:46]} Qc7 {[%emt 0:00:00]} 26. Rd1 {[%emt 0:01:15]} b5 {[%emt 0:02:10]} 27. Nb2 {[%emt 0:02:54]} Nxb2 {[%emt 0:02:37]} 28. Bxb2 {[%emt 0:00:20]} Rab8 {[%emt 0:04:32]} 29. c5 {[%emt 0:00:25]} Ng6 {[%emt 0:00:53]} 30. b4 {[%emt 0:03:07]} Rbe8 {[%emt 0:02:05]} 31. Qd3 {[%emt 0:02:42]} dxc5 {[%emt 0:03:05]} 32. bxc5 {[%emt 0:00:20]} Qa5 {[%emt 0:01:44]} 33. Qb3+ {[%emt 0:00:20]} Kh8 {[%emt 0:00:12]} 34. Rf7 {[%emt 0:00:55]} Bf6 {[%emt 0:01:22]} 35. Bxf6 {[%emt 0:00:33]} gxf6 {[%emt 0:00:35]} 36. Rdd7 {[%emt 0:00:00]} Rxf7 {[%emt 0:02:29]} 37. Qxf7 {[%emt 0:00:00]} Re7 {[%emt 0:00:00]} 38. Rxe7 {[%emt 0:01:21]} Nxe7 {[%emt 0:00:00]} 39. Qxf6+ {[%emt 0:00:17]} Kg8 {[%emt 0:00:00]} 40. Qxe7 {[%emt 0:00:00]} Qxa2 {[%emt 0:00:00]} 41. e5 {[%emt 0:15:08]} b4 {[%emt 0:14:39]} 42. e6 {[%emt 0:01:00]} 1-0

[Event "Anderssen Memorial Open-A 2020"]
[Site "Wroclaw"]
[Date "2020.08.07"]
[Round "8.12"]
[White "Bojczewski, Mateusz"]
[Black "Peglau, Mirjam"]
[Result "1/2-1/2"]
[ECO "B18"]
[WhiteElo "1886"]
[BlackElo "1851"]
[Annotator "NA"]
[PlyCount "60"]
[EventDate "2020.08.01"]
[EventType "swiss"]
[EventCountry "POL"]
[SourceTitle "playchess.com"]
[Source "ChessBase"]
[SourceQuality "1"]
[TimeControl "40/5400+15:1800+30"]

{[%evp 8,47,30,32767,32767,9,85,32767,32767,63,32767,77,32767,125,136,143,208,174,184,207,196,77,88,-61,-68,-84,-132,-104,-93,-99,32767,32767,32767,32767,32767,32767,32767,32767,-72,32767,-44,-52]} 1. e4 {[%emt 0:00:00]} c6 {[%emt 0:00:00]} 2. d4 {[%emt 0:00:00]} d5 {[%emt 0:00:00]} 3. Nc3 {[%emt 0:00:00]} dxe4 {[%emt 0:00:00]} 4. Nxe4 {[%emt 0:00:00]} Bf5 {[%emt 0:00:00]} 5. Ng3 {[%emt 0:00:00]} Bg6 {[%emt 0:00:00]} 6. Nh3 {[%emt 0:00:00]} h6 {[%emt 0:00:00]} (6... Nf6 $11) 7. Nf4 {[%emt 0:00:00]} Bh7 {[%emt 0:00:00]} 8. Bc4 {[%emt 0:00:00]} Nf6 {[%emt 0:00:54]} 9. O-O {[%emt 0:00:39] B18: Classical Caro-Kann: 4...Bf5 sidelines.} e6 {[%emt 0:00:55]} 10. Re1 {[%emt 0:10:49]} Be7 {[%emt 0:07:53]} 11. Bxe6 {[%emt 0:16:59]} fxe6 {[%emt 0:00:00]} 12. Nxe6 {[%emt 0:00:00] Double Attack} Qd7 {[%emt 0:01:01]} 13. Nxg7+ {[%emt 0:06:41]} Kf7 {[%emt 0:00:21]} 14. Bxh6 {[%emt 0:05:19]} (14. N7h5 $18 {and White stays clearly on top.}) 14... Bg6 {[%emt 0:07:42]} 15. Qd2 {[%emt 0:00:54]} ({White should try} 15. Qf3 $14 Rxh6 16. Rxe7+ {[%mdl 64] Deflection} Qxe7 17. N7f5 Bxf5 18. Nxf5) 15... Bf8 {[%emt 0:07:24] [#]} 16. Qg5 $146 {[%emt 0:08:21] [#]} ({Avoid the trap} 16. Bg5 $2 Bxg7 17. Qb4 Nd5 $19) ({Predecessor:} 16. N7f5 Bxf5 17. Bxf8 Rxf8 18. Nxf5 Qxf5 19. Re5 Qd7 20. Rae1 Na6 21. Re7+ Qxe7 22. Rxe7+ Kxe7 {0-1 (35) Ung,T (1348)-Huang,J (1747) Mount Buller 2005}) 16... Rxh6 $1 {[%emt 0:06:23]} ({Not} 16... Bxg7 17. Bxg7 Kxg7 {[#]} 18. Re7+ $1 {[%mdl 576] Deflection, Decoy} Qxe7 19. Nf5+ {[%mdl 64] Double Attack} Kf7 20. Nxe7 $18) 17. Qxh6 {[%emt 0:04:22]} Bxg7 {[%emt 0:00:00]} 18. Qf4 {[%emt 0:01:03]} Na6 {[%emt 0:05:36]} 19. Ne4 {[%emt 0:04:13]} Bxe4 {[%emt 0:00:27]} 20. Rxe4 {[%emt 0:00:00]} Re8 {[%emt 0:00:00]} 21. Rae1 {[%emt 0:00:16]} Rxe4 {[%emt 0:09:41]} 22. Rxe4 {[%emt 0:00:00] [#]} Qd5 {[%emt 0:04:11]} (22... Nc5 $142 $1 {[%mdl 512]} 23. Re1 (23. dxc5 Qd1+) 23... Ne6 {[%mdl 64] Double Attack}) 23. Re5 {[%emt 0:01:36]} Qxa2 {[%emt 0:02:54]} 24. g4 $15 {[%emt 0:00:05]} Qb1+ {[%emt 0:14:35]} 25. Kg2 {[%emt 0:00:00]} Qxc2 {[%emt 0:00:19]} 26. g5 {[%emt 0:00:03]} Qg6 {[%emt 0:00:27]} 27. Kh1 {[%emt 0:00:11]} Qb1+ {[%emt 0:10:35]} 28. Kg2 {[%emt 0:00:00]} Qg6 {[%emt 0:01:17]} 29. Kh1 {[%emt 0:00:00]} Qb1+ {[%emt 0:12:24]} 30. Kg2 {[%emt 0:00:00]} Qg6 {[%emt 0:00:00]} 1/2-1/2

[Event "Anderssen Memorial Open-A 2020"]
[Site "Wroclaw"]
[Date "2020.08.07"]
[Round "8.14"]
[White "Krawiec, Grzegorz"]
[Black "Szczesniak, Konrad"]
[Result "1/2-1/2"]
[ECO "B32"]
[WhiteElo "1812"]
[BlackElo "2033"]
[Annotator "ChessBase"]
[PlyCount "57"]
[EventDate "2020.08.01"]
[EventType "swiss"]
[EventCountry "POL"]
[SourceTitle "playchess.com"]
[Source "ChessBase"]
[SourceQuality "1"]
[TimeControl "40/5400+15:1800+30"]

1. e4 {[%emt 0:00:00]} c5 {[%emt 0:00:00]} 2. Nf3 {[%emt 0:00:00]} Nc6 {[%emt 0:00:00]} 3. d4 {[%emt 0:00:00]} cxd4 {[%emt 0:00:00]} 4. Nxd4 {[%emt 0:00:00]} e5 {[%emt 0:00:00]} 5. Nb5 {[%emt 0:00:00]} d6 {[%emt 0:00:00]} 6. N1c3 {[%emt 0:00:00]} a6 {[%emt 0:00:00]} 7. Na3 {[%emt 0:00:00]} b5 {[%emt 0:00:00]} 8. Nd5 {[%emt 0:00:00]} Nce7 {[%emt 0:00:00]} 9. c4 {[%emt 0:00:00]} Nxd5 {[%emt 0:00:00]} 10. Qxd5 {[%emt 0:05:59]} Be6 {[%emt 0:00:00]} 11. Qd3 {[%emt 0:08:29]} Nf6 {[%emt 0:00:00]} 12. cxb5 {[%emt 0:11:48]} d5 {[%emt 0:00:00]} 13. exd5 {[%emt 0:05:06]} Bxd5 {[%emt 0:01:43]} 14. Nc2 {[%emt 0:01:27]} Qc7 {[%emt 0:01:39]} 15. Ne3 {[%emt 0:05:28]} Bb4+ {[%emt 0:20:29]} 16. Bd2 {[%emt 0:00:28]} Be4 {[%emt 0:00:02]} 17. Qe2 {[%emt 0:02:25]} Bxd2+ {[%emt 0:01:07]} 18. Qxd2 {[%emt 0:00:00]} O-O {[%emt 0:00:01]} 19. Qc3 {[%emt 0:08:11]} Qb6 {[%emt 0:02:05]} 20. Be2 {[%emt 0:05:46]} Rac8 {[%emt 0:00:37]} 21. Qb4 {[%emt 0:00:47]} Bc6 {[%emt 0:05:41]} 22. a4 {[%emt 0:07:31]} axb5 {[%emt 0:00:18]} 23. Bxb5 {[%emt 0:01:17]} Rb8 {[%emt 0:00:17]} 24. O-O {[%emt 0:03:00]} Rfd8 {[%emt 0:04:17]} 25. Rfd1 {[%emt 0:02:22]} Rd4 {[%emt 0:01:59]} 26. Rxd4 {[%emt 0:00:54]} exd4 {[%emt 0:00:00]} 27. Nc4 {[%emt 0:00:12]} Qa7 {[%emt 0:00:00]} 28. Qa5 {[%emt 0:03:33]} Qxa5 {[%emt 0:00:15]} 29. Nxa5 {[%emt 0:00:00]} 1/2-1/2

[Event "Anderssen Memorial Open-A 2020"]
[Site "Wroclaw"]
[Date "2020.08.07"]
[Round "8.15"]
[White "Peglau, Dora"]
[Black "Peglau, Markus"]
[Result "1/2-1/2"]
[ECO "B03"]
[WhiteElo "1704"]
[BlackElo "1910"]
[Annotator "ChessBase"]
[PlyCount "76"]
[EventDate "2020.08.01"]
[EventType "swiss"]
[EventCountry "POL"]
[SourceTitle "playchess.com"]
[Source "ChessBase"]
[SourceQuality "1"]
[TimeControl "40/5400+15:1800+30"]

1. e4 {[%emt 0:00:00]} Nf6 {[%emt 0:00:00]} 2. e5 {[%emt 0:00:00]} Nd5 {[%emt 0:00:00]} 3. c4 {[%emt 0:00:00]} Nb6 {[%emt 0:00:00]} 4. d4 {[%emt 0:00:00]} d6 {[%emt 0:00:00]} 5. exd6 {[%emt 0:00:09]} exd6 {[%emt 0:00:00]} 6. Nc3 {[%emt 0:00:07]} Nc6 {[%emt 0:00:03]} 7. Nf3 {[%emt 0:00:12]} Be7 {[%emt 0:03:03]} 8. Be2 {[%emt 0:00:37]} O-O {[%emt 0:02:23]} 9. O-O {[%emt 0:00:14]} Re8 {[%emt 0:02:27]} 10. Bf4 {[%emt 0:00:17]} Bf6 {[%emt 0:01:37]} 11. Qd2 {[%emt 0:07:48]} Bg4 {[%emt 0:02:34]} 12. d5 {[%emt 0:04:28]} Bxf3 {[%emt 0:02:01]} 13. Bxf3 {[%emt 0:03:00]} Nxc4 {[%emt 0:03:50]} 14. Qc1 {[%emt 0:07:01]} N6e5 {[%emt 0:03:54]} 15. Be2 {[%emt 0:02:26]} Qd7 {[%emt 0:01:48]} 16. Ne4 {[%emt 0:03:10]} Nb6 {[%emt 0:03:03]} 17. Nxf6+ {[%emt 0:00:41]} gxf6 {[%emt 0:00:00]} 18. Qd2 {[%emt 0:02:38]} Qf5 {[%emt 0:02:54]} 19. Rac1 {[%emt 0:15:38]} Ng6 {[%emt 0:09:15]} 20. Bg3 {[%emt 0:00:21]} Re7 {[%emt 0:10:45]} 21. Rfd1 {[%emt 0:02:36]} Rae8 {[%emt 0:03:39]} 22. Bb5 {[%emt 0:01:43]} Rd8 {[%emt 0:05:53]} 23. Bf1 {[%emt 0:08:44]} Rde8 {[%emt 0:00:54]} 24. Qa5 {[%emt 0:02:48]} h5 {[%emt 0:10:19]} 25. h3 {[%emt 0:03:20]} h4 {[%emt 0:00:38]} 26. Bh2 {[%emt 0:00:00]} a6 {[%emt 0:04:35]} 27. Bxd6 {[%emt 0:02:26]} cxd6 {[%emt 0:01:59]} 28. Qxb6 {[%emt 0:00:00]} Qe5 {[%emt 0:03:57]} 29. Rc2 {[%emt 0:11:47]} Nf4 {[%emt 0:00:41]} 30. Qd4 {[%emt 0:00:26]} Qxd4 {[%emt 0:03:22]} 31. Rxd4 {[%emt 0:00:00]} Ne2+ {[%emt 0:00:39]} 32. Bxe2 {[%emt 0:00:11]} Rxe2 {[%emt 0:00:00]} 33. Rxe2 {[%emt 0:00:37]} Rxe2 {[%emt 0:00:00]} 34. Rb4 Re1+ 35. Kh2 b5 36. Rb3 Rd1 37. Ra3 Rxd5 38. Rxa6 Rd2 1/2-1/2